bitfinex/quotes_ETHUSD_20251119
["timestamp","ask_amount","ask_price","bid_price","bid_amount"]
[1763593643871,1.3514482,3010.3,3009.4,0.85889713]
[1763593644198,0.197,3011.7,3009.4,0.85889713]
[1763593644199,0.6676,3011.7,3010.1,0.90699264]
[1763593644495,0.6676,3011.7,3011.1,0.84820525]
[1763593644698,0.6676,3011.7,3011.5,0.84820525]
[1763593644888,0.6676,3011.7,3011.6,0.68080705]
[1763593645070,0.197,3012.6,3011.6,1.5290123]
[1763593645386,0.197,3012.6,3010.8,2.26188066]
[1763593645387,0.4706,3012.4,3011.7,1.52875058]
[1763593645587,0.4706,3012.4,3011.2,1.6964105]
[1763593645588,0.4706,3012.4,3011.8,0.68080705]
[1763593645752,0.4706,3012.4,3011.3,0.84794353]
[1763593645954,0.4706,3012.4,3011.5,0.84794353]
[1763593646190,0.4706,3012.4,3011.3,0.84794353]
[1763593646354,0.90699264,3012.2,3011.4,0.84794353]
[1763593646684,0.405504,3012.0,3011.4,0.84794353]
[1763593646888,0.4807,3011.9,3011.3,0.34794353]
[1763593647052,0.405504,3011.8,3011.3,0.34794353]
[1763593647248,0.405504,3011.8,3010.9,1.13094033]
[1763593647489,0.4807,3011.7,3010.9,1.13094033]
[1763593647855,0.405504,3011.6,3010.6,1.13094033]
[1763593648193,0.405504,3011.6,3010.2,1.13094033]
[1763593648396,0.4807,3011.5,3010.4,1.13094033]
[1763593648597,0.4807,3012.4,3011.1,1.13094033]
[1763593648897,7.90148934,3013.2,3010.8,1.13094033]
[1763593648898,0.4807,3012.0,3010.8,1.13094033]
[1763593649067,0.4807,3012.0,3010.7,1.13094033]
[1763593649270,0.405504,3011.9,3010.7,1.13094033]
[1763593649685,0.4807,3011.8,3010.8,1.13094033]
[1763593650077,0.4807,3011.8,3010.7,1.13094033]
[1763593650273,0.4807,3011.8,3010.5,1.6964105]
[1763593650274,0.4807,3011.8,3010.8,1.13094033]
[1763593650674,0.4807,3011.8,3010.0,0.119]
[1763593650675,0.4807,3011.8,3010.6,1.13094033]
[1763593650989,0.405504,3011.7,3010.6,1.13094033]
[1763593651193,0.405504,3010.6,3010.0,1.13094033]
[1763593651362,0.1858,3010.7,3009.6,1.13094033]
[1763593651698,0.4807,3010.6,3009.5,1.13094033]
[1763593652087,0.405504,3010.5,3009.3,1.13094033]
[1763593652289,0.4807,3010.4,3009.3,1.13094033]
[1763593652906,0.1858,3010.7,3009.5,1.13094033]
[1763593653203,0.4807,3011.7,3009.9,1.13094033]
[1763593653204,0.4807,3010.6,3009.9,1.13094033]
[1763593653402,0.4807,3010.6,3010.0,1.13094033]
[1763593653908,0.1858,3011.2,3010.3,1.13094033]
[1763593654266,0.6665,3011.2,3010.4,1.13094033]
[1763593654471,0.6665,3011.2,3010.3,1.13094033]
[1763593654670,0.6665,3011.2,3010.4,1.13094033]
[1763593655392,0.6665,3011.2,3010.0,0.119]
[1763593655393,0.1858,3011.2,3010.5,1.13094033]
[1763593655596,0.4827,3011.6,3010.7,1.13094033]
[1763593655820,0.4827,3011.6,3010.8,1.13094033]
[1763593656396,0.4827,3011.6,3010.9,1.13094033]
[1763593657125,0.4827,3011.6,3011.1,1.13094033]
[1763593657126,0.002,3011.6,3011.1,1.13094033]
[1763593657302,0.002,3011.6,3011.4,1.6964105]
[1763593657499,0.002,3011.6,3011.5,1.8154105]
[1763593658223,0.002,3011.6,3011.4,1.6964105]
[1763593658431,0.002,3011.6,3011.5,1.14015883]
[1763593658601,0.002,3011.6,3011.4,1.6964105]
[1763593659002,0.002,3011.6,3011.5,1.6964105]
[1763593659231,0.002,3011.6,3011.5,0.119]
[1763593660103,0.002,3011.6,3011.2,2.26188066]
[1763593660104,0.002,3011.6,3011.4,0.119]
[1763593660303,0.002,3011.6,3011.4,0.574]
[1763593660505,0.002,3011.6,3011.4,6.15656876]
[1763593660706,0.002,3011.6,3011.5,0.455]
[1763593660898,0.4612,3013.7,3011.5,1.36199264]
[1763593661100,0.4612,3013.7,3012.4,1.71309478]
[1763593661528,0.4612,3013.7,3012.5,0.119]
[1763593661730,0.4612,3013.7,3012.4,1.71309478]
[1763593661901,0.4612,3013.7,3012.3,1.83209478]
[1763593662101,0.4612,3013.7,3012.5,1.71309478]
[1763593662301,0.4612,3013.7,3012.5,0.119]
[1763593662507,0.197,3014.0,3012.5,0.119]
[1763593662710,0.4612,3013.9,3012.4,1.71309478]
[1763593662937,0.4612,3013.9,3012.5,1.71309478]
[1763593663141,0.4612,3013.9,3012.6,1.71309478]
[1763593663520,0.4612,3013.9,3012.7,1.83209478]
[1763593663709,0.4612,3013.9,3012.9,1.71309478]
[1763593664248,0.4612,3015.0,3013.1,1.71309478]
[1763593664555,0.4612,3015.0,3013.5,1.71309478]
[1763593665058,0.4612,3015.0,3013.7,1.71309478]
[1763593665248,0.4612,3015.0,3014.0,1.71309478]
[1763593665433,0.4612,3015.0,3013.8,1.71309478]
[1763593665751,0.4612,3015.0,3013.9,1.71309478]
[1763593666061,0.4612,3015.0,3013.8,1.71309478]
[1763593666366,0.405504,3014.9,3013.4,1.71309478]
[1763593666829,0.1978,3013.5,3013.3,1.71309478]
[1763593667147,0.1978,3013.8,3013.2,1.71309478]
[1763593667356,0.1978,3013.8,3013.0,0.1674]
[1763593667566,0.4612,3013.7,3012.6,2.28412638]
[1763593667859,0.4612,3013.7,3012.1,0.119]
[1763593667860,0.405504,3013.6,3012.1,0.119]
[1763593668156,0.1978,3013.8,3012.3,2.28412638]
[1763593668462,0.1978,3013.8,3012.4,0.574]
[1763593668754,0.4612,3014.0,3012.4,0.574]
[1763593668955,0.1978,3013.9,3012.5,0.455]
[1763593669156,0.4612,3014.5,3012.5,3.77450207]
[1763593669360,0.4612,3014.5,3012.5,2.73912638]
[1763593669514,0.4612,3014.5,3012.6,1.48099264]
[1763593669715,0.4612,3014.5,3012.7,0.119]
[1763593669957,0.002,3013.5,3012.7,0.574]
[1763593670126,0.002,3013.5,3012.7,0.455]
[1763593670314,0.002,3013.5,3012.8,0.119]
[1763593670730,0.002,3013.5,3012.9,0.119]
[1763593671060,0.002,3013.5,3013.0,0.119]
[1763593671254,0.002,3013.5,3012.5,2.28412638]
[1763593671454,0.002,3013.5,3012.6,0.574]
[1763593672275,0.002,3013.5,3012.7,0.455]
[1763593672474,0.002,3013.5,3012.8,0.119]
[1763593672830,0.002,3013.5,3012.8,0.574]
[1763593673560,0.002,3013.5,3012.8,0.119]
[1763593673761,0.002,3013.5,3012.9,0.455]
[1763593674633,0.002,3013.5,3012.8,0.119]
[1763593674856,0.002,3013.5,3012.0,14.74051598]
[1763593674857,0.4612,3013.4,3011.9,0.6115]
[1763593675078,0.4612,3013.4,3012.0,0.119]
[1763593675254,0.002,3013.5,3012.0,0.574]
[1763593675634,0.002,3013.5,3012.1,0.455]
[1763593676935,0.4632,3013.5,3012.1,0.455]
[1763593677134,0.4632,3013.5,3012.2,0.119]
[1763593677363,0.4632,3013.5,3012.2,0.574]
[1763593678244,0.4632,3013.5,3012.2,0.119]
[1763593678659,0.002,3013.5,3012.3,0.455]
[1763593678863,0.002,3013.5,3012.4,0.119]
[1763593679187,0.4632,3013.5,3012.4,0.119]
[1763593680036,0.4632,3013.5,3011.9,0.1565]
[1763593680553,0.4632,3013.5,3011.9,0.2755]
[1763593680793,0.4632,3013.5,3011.6,0.0976]
[1763593680794,0.405504,3013.4,3011.6,0.0976]
[1763593681093,0.1978,3011.7,3010.3,0.455]
[1763593681250,0.1978,3011.7,3010.5,0.455]
[1763593681454,0.1978,3012.4,3011.6,0.1949]
[1763593681769,0.659,3012.4,3011.3,0.1949]
[1763593682013,0.1978,3013.1,3012.3,0.1949]
[1763593682160,0.1978,3013.6,3012.4,0.15219612]
[1763593682362,0.1978,3014.4,3013.4,0.1949]
[1763593682686,0.4612,3014.7,3013.4,0.6499]
[1763593682861,0.4612,3014.7,3013.4,0.7689]
[1763593683560,0.4612,3014.7,3013.4,0.1949]
[1763593683761,0.1978,3013.9,3013.0,0.1949]
[1763593683962,0.1978,3013.9,3013.1,0.119]
[1763593684578,0.1978,3014.3,3013.2,0.455]
[1763593684785,0.1978,3013.9,3013.0,0.1949]
[1763593684966,0.1978,3013.9,3013.0,0.119]
[1763593685351,0.1978,3013.9,3012.9,0.119]
[1763593685799,0.4612,3013.4,3012.3,0.1949]
[1763593685978,0.4612,3013.4,3012.1,0.455]
[1763593685979,0.4612,3013.4,3012.0,0.1949]
[1763593686311,0.4612,3013.4,3011.9,0.1949]
[1763593686912,0.4612,3013.4,3011.9,0.6499]
[1763593687205,0.4612,3013.4,3012.0,3.32005312]
[1763593687406,0.1978,3013.6,3012.0,7.09510624]
[1763593687569,0.4632,3013.5,3012.1,0.119]
[1763593687769,0.4632,3013.5,3012.2,0.119]
[1763593688330,0.4632,3013.5,3011.6,0.90699264]
[1763593688612,0.405504,3013.4,3011.7,0.5889]
[1763593688986,0.487,3013.3,3011.7,0.4699]
[1763593689312,0.487,3013.3,3011.5,0.001]
[1763593689568,0.487,3013.3,3011.8,0.119]
[1763593689690,0.487,3013.3,3011.6,0.119]
[1763593690292,0.405504,3013.2,3011.5,0.001]
[1763593690488,0.405504,3013.2,3011.6,0.118]
[1763593690688,0.405504,3013.0,3011.6,0.118]
[1763593690906,0.405504,3013.0,3011.5,0.001]
[1763593691097,0.487,3012.9,3011.5,0.001]
[1763593691484,0.1976,3012.8,3011.5,0.001]
[1763593691736,0.405504,3012.7,3011.5,0.001]
[1763593692021,0.892504,3012.7,3011.5,0.001]
[1763593692436,0.1976,3011.6,3011.5,0.001]
[1763593692810,0.487,3012.5,3011.5,0.001]
[1763593692994,0.1976,3011.9,3011.5,0.001]
[1763593693425,0.487,3011.8,3011.5,0.001]
[1763593693928,0.1976,3011.9,3011.5,0.001]
[1763593694225,0.6846,3011.9,3011.5,0.001]
[1763593694615,0.487,3011.8,3011.5,0.001]
[1763593695009,0.1976,3011.9,3011.5,0.001]
[1763593696026,0.1976,3012.8,3011.6,0.118]
[1763593696223,1.37847578,3015.3,3012.2,6.56349166]
[1763593696422,0.487,3013.7,3012.3,0.90699264]
[1763593696622,0.487,3013.7,3012.3,0.5879]
[1763593696826,0.487,3013.7,3012.4,0.118]
[1763593697007,0.487,3013.7,3012.4,3.4375929]
[1763593697205,0.487,3013.7,3012.5,0.118]
[1763593697518,0.487,3013.7,3012.3,0.4699]
[1763593697823,0.487,3014.3,3013.4,0.1861]
[1763593698542,0.487,3014.9,3013.4,0.656]
[1763593698703,0.487,3014.4,3013.1,0.118]
[1763593699038,0.487,3014.4,3013.2,0.4699]
[1763593699235,0.487,3014.4,3013.2,0.118]
[1763593699652,0.487,3014.4,3013.2,0.5879]
[1763593699797,0.487,3014.4,3013.3,0.4699]
[1763593700003,0.1976,3015.0,3013.3,0.4699]
[1763593700004,0.6846,3015.0,3013.3,0.4699]
[1763593700519,0.6846,3015.0,3013.4,0.118]
[1763593700723,0.487,3014.6,3013.3,0.4699]
[1763593700920,0.487,3014.6,3013.4,0.118]
[1763593701121,0.1976,3015.0,3013.4,0.118]
[1763593701122,0.487,3014.9,3013.4,0.118]
[1763593701319,0.487,3014.9,3013.4,4.29706215]
[1763593701534,0.1976,3015.7,3013.4,4.81340329]
[1763593701734,0.1976,3015.7,3013.9,0.1]
[1763593701735,0.6846,3015.7,3013.9,0.1]
[1763593701936,0.6846,3015.7,3014.0,6.56349166]
[1763593702136,0.6846,3015.7,3014.1,0.118]
[1763593702137,0.487,3015.6,3014.1,0.118]
[1763593702443,0.487,3015.6,3013.3,0.90699264]
[1763593702444,1.39399264,3015.6,3013.3,0.90699264]
[1763593702663,2.37172507,3018.0,3015.0,1.996]
[1763593702848,2.37083533,3018.8,3018.7,0.1]
[1763593703145,4.14896183,3019.6,3019.0,0.405504]
[1763593703146,3.1517043,3019.6,3019.0,0.405504]
[1763593703346,3.1517043,3019.6,3019.2,0.405504]
[1763593703522,3.1517043,3019.6,3019.1,2.564887]
[1763593703523,3.12789133,3019.5,3019.3,2.564887]
[1763593703721,2.15639222,3019.6,3019.4,2.564887]
[1763593703943,2.15639222,3019.6,3019.4,0.121]
[1763593704141,2.15639222,3019.6,3019.5,2.8597555]
[1763593704343,1.16108014,3019.6,3019.5,2.8597555]
[1763593704558,1.16108014,3019.6,3019.5,3.15105902]
[1763593704730,1.16108014,3019.6,3019.5,2.74555502]
[1763593705042,1.16108014,3019.6,3019.5,2.82955502]
[1763593705222,0.19072564,3019.6,3019.5,6.12136161]
[1763593705419,0.19072564,3019.6,3019.5,6.52686561]
[1763593705623,5.84359649,3020.2,3020.1,0.1]
[1763593705819,5.84359649,3020.2,3020.1,0.3948685]
[1763593706019,5.84359649,3020.2,3020.1,2.80955502]
[1763593706247,5.84359649,3020.2,3020.1,2.70955502]
[1763593706745,6.42795614,3020.2,3018.7,9.87610117]
[1763593706944,6.42795614,3020.2,3018.4,0.121]
[1763593707243,6.42795614,3020.2,3018.6,3.31279401]
[1763593707543,6.42795614,3020.2,3018.6,6.72558802]
[1763593707742,6.42795614,3020.2,3018.6,10.03838203]
[1763593707945,0.64279561,3020.1,3018.9,0.1]
[1763593708122,0.64279561,3020.1,3019.0,0.121]
[1763593708520,0.64279561,3020.1,3018.8,6.56349166]
[1763593710115,5.84359649,3020.2,3019.1,0.1]
[1763593710336,5.84359649,3020.2,3019.3,6.56349166]
[1763593710541,5.84359649,3020.2,3019.4,0.1]
[1763593710842,5.84359649,3020.2,3019.3,6.56349166]
[1763593711031,5.84359649,3020.2,3019.2,0.121]
[1763593711237,0.58435965,3020.1,3019.2,0.121]
[1763593714045,0.58435965,3020.1,3018.8,0.90699264]
[1763593714046,0.4861,3020.0,3018.8,0.90699264]
[1763593714361,0.4861,3020.0,3018.8,4.21953991]
[1763593714517,0.58435965,3020.1,3018.8,4.21955061]
[1763593714951,5.84359649,3020.2,3018.8,4.21955061]
[1763593715275,0.4861,3020.8,3020.1,0.8310291]
[1763593715441,0.4861,3020.8,3020.2,0.66587119]
[1763593715643,0.4861,3020.8,3020.3,0.66587119]
[1763593715955,0.4861,3021.3,3020.4,0.66587119]
[1763593716161,0.4861,3021.3,3020.5,0.66587119]
[1763593716326,0.1976,3021.6,3020.6,0.66587119]
[1763593716516,0.6837,3022.0,3020.7,0.66587119]
[1763593716853,0.4861,3021.9,3020.8,1.49690029]
[1763593717055,0.4861,3021.9,3020.9,1.49690029]
[1763593717219,0.4861,3021.9,3021.0,0.66587119]
[1763593717544,0.4861,3021.9,3020.3,0.8310291]
[1763593717744,0.4861,3021.9,3020.4,0.66323325]
[1763593717944,0.4861,3021.9,3020.5,0.66323325]
[1763593718127,0.4861,3021.9,3020.6,0.66323325]
[1763593718451,0.4861,3021.9,3020.1,0.8310291]
[1763593718750,0.4861,3021.9,3019.8,0.12]
[1763593718751,0.4861,3021.9,3020.2,0.66300735]
[1763593718952,0.4861,3021.9,3020.0,0.8310291]
[1763593718953,0.4861,3021.9,3020.3,0.66300735]
[1763593719253,0.4861,3021.9,3020.4,0.66300735]
[1763593719445,0.4861,3021.9,3020.5,0.66300735]
[1763593719755,7.04959166,3021.9,3019.9,0.8310291]
[1763593719955,0.1959,3020.0,3019.3,0.8310291]
[1763593720256,0.1959,3020.0,3019.2,0.8310291]
[1763593720755,0.1959,3020.0,3019.1,0.8310291]
[1763593720968,1.63171181,3021.8,3019.1,0.8310291]
[1763593720969,0.1959,3020.8,3019.3,0.8310291]
[1763593721175,0.1959,3020.8,3019.5,0.8310291]
[1763593721371,0.4789,3020.7,3019.2,0.8310291]
[1763593721748,0.4789,3020.7,3019.0,0.8310291]
[1763593722137,0.4789,3020.7,3019.1,0.8310291]
[1763593722538,0.4789,3020.7,3019.2,0.86415045]
[1763593723202,0.4789,3020.7,3019.3,0.8310291]
[1763593723355,0.1959,3019.4,3019.1,0.8310291]
[1763593723879,0.1959,3019.9,3019.2,0.03312135]
[1763593724079,0.6748,3019.9,3019.2,0.03312135]
[1763593724387,0.4789,3019.8,3019.2,0.86415045]
[1763593724942,0.4789,3019.8,3019.1,0.8310291]
[1763593725246,0.4789,3019.8,3019.2,1.12277408]
[1763593725446,0.4789,3019.8,3019.3,1.12274361]
[1763593725647,0.4789,3019.8,3019.3,0.8310291]
[1763593725860,0.1959,3019.9,3019.4,0.03311916]
[1763593726082,0.1959,3019.9,3019.4,0.8310291]
[1763593726284,0.4789,3019.8,3019.7,0.8310291]
[1763593726488,0.1959,3019.9,3019.7,0.8310291]
[1763593726984,0.1959,3020.8,3019.6,0.03311696]
[1763593726985,0.4789,3020.4,3019.8,0.8310291]
[1763593727177,0.4789,3020.4,3020.2,0.84309023]
[1763593727369,0.1959,3020.8,3020.3,1.16852403]
[1763593727540,0.4789,3020.7,3020.4,1.13534994]
[1763593727740,0.4789,3020.7,3020.5,1.13534994]
[1763593727970,0.4789,3020.7,3020.6,1.13595912]
[1763593728188,0.4789,3020.7,3020.6,0.29293369]
[1763593728505,0.4789,3020.7,3020.5,1.10978532]
[1763593728650,0.4789,3020.7,3020.3,1.66282105]
[1763593728651,0.4789,3020.7,3020.6,0.84505017]
[1763593729080,0.1959,3020.8,3020.5,1.10978532]
[1763593729282,0.4789,3020.7,3019.8,1.66282105]
[1763593729968,0.4789,3020.7,3019.6,1.66282105]
[1763593730167,0.4789,3020.7,3019.9,1.66282105]
[1763593730374,0.4789,3020.7,3019.8,1.66282105]
[1763593731281,0.4789,3020.7,3020.3,1.66282105]
[1763593732103,0.4789,3020.7,3020.5,1.66282105]
[1763593732276,0.4789,3020.7,3020.3,5.06881511]
[1763593732451,0.4789,3020.7,3020.3,2.29435179]
[1763593733185,0.4789,3020.7,3020.2,2.29435179]
[1763593733399,0.4789,3020.7,3019.9,2.29435179]
[1763593733559,0.4789,3020.7,3019.6,2.29435179]
[1763593733560,0.1959,3019.9,3019.6,2.29435179]
[1763593733886,0.1959,3019.9,3018.2,14.12840816]
[1763593733887,0.405504,3019.7,3018.5,1.43010972]
[1763593734056,0.405504,3019.7,3016.9,0.3335]
[1763593734057,0.1959,3018.7,3017.2,2.77446332]
[1763593734250,0.1959,3018.7,3017.1,0.1226]
[1763593734461,0.4789,3018.6,3017.1,0.1226]
[1763593736093,0.4789,3018.6,3016.3,0.1907]
[1763593736297,0.1959,3017.2,3016.2,0.4916]
[1763593737610,0.405504,3018.5,3016.2,0.4916]
[1763593737773,0.1959,3017.8,3016.2,0.4916]
[1763593738103,0.1959,3017.8,3016.4,0.90699264]
[1763593738316,0.4789,3017.7,3016.4,0.90699264]
[1763593738520,0.1959,3017.8,3016.5,0.4916]
[1763593738683,0.4789,3018.1,3016.5,0.4916]
[1763593738882,0.1959,3018.2,3016.7,0.1]
[1763593739099,0.1959,3018.2,3016.6,0.1]
[1763593739476,0.1959,3018.2,3016.7,0.4916]
[1763593739889,0.1959,3019.0,3018.1,0.1907]
[1763593740410,0.6748,3019.7,3018.2,1.69546513]
[1763593740574,0.6748,3019.7,3018.3,0.7914798]
[1763593740575,0.4789,3019.6,3018.3,0.7914798]
[1763593740775,0.4789,3019.6,3018.4,0.29687249]
[1763593741043,0.6748,3020.2,3018.4,7.35196415]
[1763593741320,0.1959,3020.2,3018.5,1.6752564]
[1763593741481,0.4789,3020.1,3018.6,0.29687249]
[1763593741679,0.4789,3020.1,3018.6,0.78847249]
[1763593741893,0.4789,3020.1,3018.7,0.29687249]
[1763593742107,0.1959,3020.2,3018.7,0.78847249]
[1763593742295,0.1959,3020.2,3018.9,0.90699264]
[1763593742496,0.4789,3020.1,3019.0,0.29687249]
[1763593742727,0.4789,3020.1,3018.2,3.31322224]
[1763593743027,0.1959,3020.2,3018.6,6.56349166]
[1763593743228,0.4789,3020.1,3018.7,0.78835567]
[1763593743543,0.4789,3020.1,3018.8,0.29676109]
[1763593743760,0.1959,3020.8,3018.8,0.78836109]
[1763593743906,0.1959,3020.8,3019.2,0.90699264]
[1763593744096,0.1959,3020.8,3019.3,1.40396745]
[1763593744294,0.1959,3021.2,3019.7,0.1]
[1763593744601,0.1959,3021.2,3019.8,0.29676109]
[1763593744845,0.1959,3021.4,3019.9,0.29676109]
[1763593744991,0.4789,3021.3,3020.0,0.78836109]
[1763593745347,0.4789,3021.3,3019.7,1.07369264]
[1763593745348,0.002,3020.7,3020.1,0.29676109]
[1763593745488,0.002,3020.7,3019.7,0.1667]
[1763593745834,0.002,3020.7,3019.8,0.29634779]
[1763593746338,0.002,3020.7,3019.9,3.31136792]
[1763593746506,0.002,3020.7,3020.0,0.29634779]
[1763593746905,0.002,3020.7,3019.7,6.7898107]
[1763593747119,0.002,3020.7,3019.8,0.2963994]
[1763593747318,0.002,3020.7,3019.8,1.69499204]
[1763593747521,0.002,3020.7,3019.9,0.2963994]
[1763593748435,0.002,3020.7,3019.8,0.90699264]
[1763593748619,0.4584,3020.7,3019.9,0.29661798]
[1763593748921,0.4584,3020.7,3019.8,0.4634]
[1763593748922,0.002,3020.7,3019.8,0.4634]
[1763593749725,0.002,3020.7,3019.9,0.29659008]
[1763593750192,0.002,3020.7,3020.0,0.4634]
[1763593750533,0.002,3020.7,3020.2,6.622078]
[1763593751023,0.002,3020.7,3020.1,0.1897]
[1763593751024,0.002,3020.7,3020.3,0.29646784]
[1763593751438,0.002,3020.7,3020.1,0.1897]
[1763593751617,0.002,3020.7,3019.9,4.2183599]
[1763593751826,0.002,3020.7,3019.9,7.52972782]
[1763593751987,0.002,3020.7,3020.0,0.75982595]
[1763593752191,0.002,3020.7,3020.1,0.29642595]
[1763593752442,0.002,3020.7,3019.8,4.21841772]
[1763593752641,0.002,3020.7,3019.9,0.75972198]
[1763593752794,0.002,3020.7,3020.0,0.29632198]
[1763593753706,0.002,3020.7,3020.1,0.29632198]
[1763593753941,0.002,3020.7,3019.8,7.5298953]
[1763593754111,0.002,3020.7,3019.4,0.90699264]
[1763593754112,0.4584,3020.7,3019.4,0.90699264]
[1763593754310,0.4584,3020.7,3019.5,0.2963999]
[1763593754625,0.4584,3020.7,3019.2,0.3087]
[1763593754626,0.4584,3020.7,3019.6,0.2963999]
[1763593754793,0.4584,3020.7,3019.2,0.1897]
[1763593754998,0.4584,3020.7,3019.3,0.29649358]
[1763593755411,0.4584,3020.7,3019.2,0.1897]
[1763593755614,0.4584,3020.7,3018.9,0.001]
[1763593756241,0.4584,3020.7,3018.9,3.31343596]
[1763593756426,0.4584,3020.7,3018.9,0.36201525]
[1763593757143,0.4584,3020.7,3018.9,3.31345305]
[1763593757323,0.4584,3020.7,3019.0,0.4634]
[1763593757694,0.4584,3020.7,3019.1,0.1897]
[1763593757901,0.4584,3020.7,3019.2,0.03312135]
[1763593758104,0.4584,3020.7,3019.2,0.4634]
[1763593758518,0.4584,3020.7,3019.1,0.1897]
[1763593758519,0.4584,3020.7,3019.1,3.50194532]
[1763593759035,0.4584,3020.7,3018.9,0.001]
[1763593759698,0.4584,3020.7,3018.9,3.31342455]
[1763593759937,0.4584,3020.7,3018.9,7.51135433]
[1763593760104,0.405504,3020.6,3018.9,0.001]
[1763593760514,0.4564,3020.5,3018.9,0.001]
[1763593760844,0.405504,3020.4,3018.9,0.001]
[1763593761050,0.1965,3019.0,3018.9,0.001]
[1763593761357,0.1965,3019.3,3018.9,0.001]
[1763593761703,0.4564,3019.2,3018.9,0.001]
[1763593762235,0.1965,3019.3,3018.9,0.001]
[1763593762449,0.6529,3019.3,3018.9,0.001]
[1763593762805,0.4564,3019.2,3018.9,0.001]
[1763593767805,0.1965,3019.3,3018.9,0.001]
[1763593768046,0.1803,3019.5,3018.9,0.001]
[1763593768555,0.6329,3019.5,3018.9,0.001]
[1763593768776,0.1803,3019.5,3018.9,0.001]
[1763593768913,0.1803,3019.8,3018.9,0.001]
[1763593770063,0.4526,3020.4,3019.0,0.4633]
[1763593770356,0.4526,3020.4,3018.9,0.001]
[1763593770563,0.4526,3020.4,3018.9,0.4643]
[1763593770718,0.4526,3020.4,3019.0,3.31235508]
[1763593770913,0.4526,3020.4,3019.1,1.03606551]
[1763593772348,0.4526,3020.4,3019.1,0.6584]
[1763593772793,0.4526,3020.4,3019.2,0.90699264]
[1763593773005,0.4526,3020.4,3019.2,1.37029264]
[1763593773290,0.4526,3020.4,3019.3,0.4633]
[1763593773685,0.6491,3020.9,3019.3,0.4633]
[1763593774751,0.6491,3020.9,3019.3,3.77528839]
[1763593774947,0.6485,3021.4,3019.4,1.37029264]
[1763593775148,0.6485,3021.4,3019.4,1.47029264]
[1763593775374,0.6485,3021.4,3019.5,0.4633]
[1763593775566,0.6485,3021.4,3020.6,0.1951]
[1763593776471,0.1803,3020.9,3020.0,0.1951]
[1763593778387,0.1959,3021.4,3020.1,0.4875]
[1763593779097,0.1883,3021.7,3020.6,0.4803]
[1763593779303,0.6626,3022.0,3020.6,0.4803]
[1763593779304,0.1959,3022.0,3020.6,0.4803]
[1763593779590,0.1883,3021.9,3020.6,0.9678]
[1763593779950,0.4667,3021.7,3020.6,0.4803]
[1763593780267,0.4667,3021.4,3020.2,0.4875]
[1763593780462,0.1883,3020.9,3020.0,0.3131]
[1763593780787,0.1883,3020.9,3020.0,0.1951]
[1763593781004,0.655,3020.9,3020.0,0.1951]
[1763593781360,0.1883,3020.9,3020.0,0.1951]
[1763593781568,0.4667,3021.7,3020.6,0.4803]
[1763593782387,0.1883,3021.9,3020.1,1.39449264]
[1763593782590,0.4667,3021.4,3020.1,1.39449264]
[1763593782789,0.1883,3021.9,3020.6,0.4803]
[1763593782972,0.4667,3021.7,3020.6,0.4803]
[1763593783606,0.4667,3021.4,3020.2,4.7055142]
[1763593783817,0.4667,3021.4,3020.3,0.4875]
[1763593784013,0.4667,3021.7,3020.6,0.4803]
[1763593785177,0.1883,3021.9,3020.6,5.18539318]
[1763593785613,0.4667,3022.2,3020.6,5.30339318]
[1763593785916,0.001,3020.7,3020.6,5.30339318]
[1763593786227,0.1803,3023.1,3020.6,4.82309318]
[1763593786382,0.09083496,3023.2,3021.9,7.25553885]
[1763593786577,0.4667,3023.1,3021.7,0.118]
[1763593786899,0.4667,3023.1,3021.1,0.118]
[1763593787081,0.4667,3023.1,3020.8,0.4875]
[1763593787275,0.4667,3023.1,3020.8,1.51249264]
[1763593787476,0.405504,3023.0,3020.9,0.48229083]
[1763593787680,0.405504,3022.8,3020.8,0.6055]
[1763593787922,0.405504,3022.8,3020.2,3.31095233]
[1763593787923,0.405504,3022.8,3020.2,0.4875]
[1763593788092,0.405504,3022.6,3020.3,0.4875]
[1763593788482,0.4667,3022.5,3020.3,0.4875]
[1763593788816,0.4667,3022.5,3020.5,0.90699264]
[1763593789016,0.4667,3022.5,3020.7,6.62098188]
[1763593789216,0.4667,3022.5,3020.8,1.02399264]
[1763593789411,0.4667,3022.5,3020.8,1.51149264]
[1763593789604,0.1883,3022.9,3020.9,0.4875]
[1763593789787,0.655,3022.9,3020.9,0.4875]
[1763593790317,0.4667,3022.8,3021.0,0.90699264]
[1763593790716,0.4667,3022.8,3021.1,0.4875]
[1763593791293,0.4667,3022.8,3021.3,0.90699264]
[1763593791517,0.1883,3022.9,3021.5,0.90699264]
[1763593791948,0.1883,3022.9,3021.6,0.4875]
[1763593792722,0.655,3023.3,3021.6,0.4875]
[1763593793428,0.1883,3023.5,3021.9,7.35553885]
[1763593793630,0.1883,3023.5,3022.0,0.117]
[1763593793802,0.1883,3025.6,3023.3,0.1]
[1763593794000,0.655,3025.6,3023.8,0.90699264]
[1763593794214,0.4667,3025.5,3023.9,0.118]
[1763593794425,0.4667,3025.5,3023.5,0.4875]
[1763593794600,0.4667,3025.5,3023.6,0.90699264]
[1763593794789,0.4667,3025.5,3023.7,0.86500315]
[1763593794985,0.1883,3025.6,3023.8,0.4875]
[1763593795434,0.1883,3025.6,3023.9,0.118]
[1763593795435,0.655,3025.6,3023.9,0.118]
[1763593795640,0.655,3025.6,3024.0,0.118]
[1763593795932,0.655,3025.6,3023.8,1.39449264]
[1763593795933,0.4667,3025.5,3023.8,0.4875]
[1763593796289,0.4667,3025.5,3023.5,0.6055]
[1763593797109,0.1883,3025.9,3024.2,7.25553885]